Cogmind - Beta 10.1 @@@ ROGUE MODE // 2020.10.25 @ 03:00:02 Player: Cog Result: Destroyed self with Grenade Launcher Performance ------------- Evolutions (0) 0 Regions Visited (2) 400 Robots Destroyed (14) 70 Value Destroyed (472) 472 Prototype IDs (0) 0 Alien Tech Used (0) 0 Bonus (0) 0 TOTAL SCORE: 942 Bonus ------- None Cogmind --------- Core Integrity 0/250 Matter 245/300 Energy 250/250 System Corruption 2% Temperature Cool (0) Movement Walking (120) Location -10/Mines Parts ------- > --- POWER (1) -------- Ion Engine > --- PROPULSION (2) --- Aluminum Leg Aluminum Leg > --- UTILITY (2) ------ Heat Sink Small Storage Unit > --- WEAPON (2) ------- Grenade Launcher > --- INVENTORY (6) ---- Light Treads Light Treads Aluminum Leg Compact Wheel Heat Sink Peak State ------------ > --- POWER ------------ Ion Engine > --- PROPULSION ------- Aluminum Leg Aluminum Leg > --- UTILITY ---------- Small Storage Unit Targeting Computer > --- WEAPON ----------- Particle Gun Light Assault Rifle > --- INVENTORY -------- Ion Engine Light Treads Light Treads Heat Sink Grenade Launcher [Rating: 8] Favorites ----------- Power Ion Engine Engine Ion Engine Propulsion Wheel Leg Aluminum Leg Wheel Wheel Utility Small Storage Unit Device Heat Sink Storage Small Storage Unit Processor Targeting Computer Weapon EM Pulse Gun Energy Gun EM Pulse Gun Ballistic Gun Light Assault Rifle Launcher Grenade Launcher Build | -11 -10 -10 ------- Run | Scr Mat Min Slots Evolved . | . . . Power . | . . . Propulsion . | . . . Utility . | . . . Weapon . | . . . Parts Attached 17 | 2 5 10 Power 1 | . . 1 Engine 1 | . . 1 Core . | . . . Reactor . | . . . Propulsion 6 | 2 . 4 Treads . | . . . Leg 4 | . . 4 Wheel 2 | 2 . . Hover . | . . . Flight . | . . . Utility 6 | . 4 2 Device 4 | . 3 1 Storage . | . . . Processor 2 | . 1 1 Hackware . | . . . Protection . | . . . Artifact . | . . . Weapon 4 | . 1 3 Energy Gun 2 | . 1 1 Energy Cannon . | . . . Ballistic Gun 1 | . . 1 Ballistic Cannon . | . . . Launcher 1 | . . 1 Special Weapon . | . . . Impact Weapon . | . . . Slashing Weapon . | . . . Piercing Weapon . | . . . Special Melee Weapon . | . . . Unidentified Prototypes . | . . . Parts Lost 9 | . . 9 Power 1 | . . 1 Propulsion 3 | . . 3 Utility 1 | . . 1 Weapon 4 | . . 4 Highest Loss Streak 4 | . . 4 Average Slot Usage (%) 87 | . 96 79 Engine 12 | . 14 11 Leg 12 | . . 21 Wheel 14 | . 28 3 Device 5 | . 7 3 Storage 14 | . 14 14 Processor 5 | . 3 7 Energy Gun 14 | . 27 4 Ballistic Gun 3 | . . 4 Launcher 4 | . . 7 Naked Turns . | . . . Heaviest Build 14 | 12 14 14 Greatest Support 20 | 20 20 20 Greatest Overweight (x) 3 | . . 3 Average Overweight (x) . | . . . Largest Inventory Capacity 6 | 6 6 6 Average Capacity 6 | 6 6 6 Most Carried 6 | 6 6 6 Average Carried 5 | 6 5 4 Final Capacity 6 | 6 6 6 Final Carried 6 | 6 6 5 Class Distribution -------------------- 87% | Mutant 12% | Scavenger-Mutant Dominant Class ---------------- Mutant | -10/Materials Mutant | -10/Mines Resources | -11 -10 -10 ----------- Run | Scr Mat Min Matter Collected 423 | 200 70 153 Remotely . | . . . Salvage Created 532 | . 213 319 Parts 25 | . 11 14 Haulers Intercepted . | . . . Recyclers Shooed . | . . . Parts Field Recycled . | . . . Retrieved Matter . | . . . Parts Self-Destructed . | . . . Prevented . | . . . Kills | -11 -10 -10 ------- Run | Scr Mat Min Combat Hostiles Destroyed 11 | . 3 8 Guns 5 | . 3 2 AOE 5 | . . 5 Classes Destroyed 4 | . 3 1 Worker 1 | . 1 . Recycler 1 | . . 1 Watcher 1 | . 1 . Grunt 11 | . 3 8 Best Kill Streak 3 | . 2 3 Combat Bots Only 2 | . 2 2 Max Kills in Single Turn 2 | . 1 2 Gunslinging . | . . . Exploded 2 | . . 2 Melee . | . . . Uniques/NPCs Destroyed . | . . . Combat | -11 -10 -10 -------- Run | Scr Mat Min Damage Taken 780 | . 136 644 Core 250 | . 32 218 Absorbed by Shields . | . . . Core Remaining (%) 100 | 100 . . Volleys Fired 53 | . 11 42 Largest 2 | . 2 2 Hottest 85 | . 80 85 Shots Fired 73 | . 22 51 Gun 61 | . 22 39 Cannon . | . . . Launcher 12 | . . 12 Special . | . . . Kinetic 21 | . . 21 Thermal 4 | . . 4 Explosive 12 | . . 12 Electromagnetic 36 | . 22 14 Robot Hit Streak 13 | . 8 13 Robot Miss Streak 2 | . 1 2 Penetration Max . | . . . Secondary Targets 1 | . 1 . Max Gunslinging Chain 1 | . 1 . Shots Hit Robots 49 | . 17 32 Core Hits 28 | . 9 19 Critical Hits . | . . . Critical Kills . | . . . Critical Parts Destroyed . | . . . Melee Attacks . | . . . Impact . | . . . Slashing . | . . . Piercing . | . . . Sneak Attacks . | . . . Combat Hostiles . | . . . Follow-up Attacks . | . . . Damage Inflicted 1080 | . 238 842 Guns 498 | . 190 308 Cannons . | . . . Explosions 582 | . 48 534 Melee . | . . . Ramming . | . . . Kinetic 113 | . . 113 Thermal 90 | . 48 42 Explosive 534 | . . 534 Electromagnetic 343 | . 190 153 Impact . | . . . Slashing . | . . . Piercing . | . . . Highest Corruption 2 | . 2 2 Average Corruption 2 | . 2 2 Corruption Purged . | . . . Effects 4 | . 1 3 Message Errors 2 | . . 2 Data Loss (minor) 1 | . 1 . Targeting Errors 1 | . . 1 Overload Shots . | . . . Overflow Damage . | . . . Projectiles . | . . . Explosions . | . . . Melee . | . . . Knockbacks . | . . . Impact . | . . . Kinetic . | . . . Secondary . | . . . Self-Inflicted Damage 48 | . 23 25 Shots 2 | . 1 1 Rammed . | . . . Targets Rammed . | . . . Kicked . | . . . Crushed . | . . . Highest Temperature 204 | . 30 204 Average Temperature 77 | . 8 98 Received Heat Transfer 432 | . 66 366 Siege Activations . | . . . Robots Corrupted 1 | . . 1 Combat Hostiles 1 | . . 1 Parts Fried 3 | . 1 2 Impact Corruptions . | . . . Robots Melted . | . . . Combat Hostiles . | . . . Parts Melted . | . . . Heat Transferred 111 | . . 111 Parts Sabotaged . | . . . Parts Stolen . | . . . Parts Stripped . | . . . Power Chain Reactions 1 | . 1 . Missiles Intercepted . | . . . Alert | -11 -10 -10 ------- Run | Scr Mat Min Peak Influence 167 | . 97 167 Initial 37 | . . 37 Average 72 | . 56 85 Maximum Alert Level . | . . . Low Security (%) 100 | 100 100 100 Level 1 . | . . . Level 2 . | . . . Level 3 . | . . . Level 4 . | . . . Level 5 . | . . . High Security . | . . . Max Security . | . . . Squads Dispatched . | . . . Investigation . | . . . Extermination . | . . . Reinforcement . | . . . Assault . | . . . Garrison . | . . . Intercept . | . . . Construction Impeded . | . . . Haulers Reinforced . | . . . Stealth | -11 -10 -10 --------- Run | Scr Mat Min Distress Signals . | . . . Communications Jammed . | . . . Distress Signals . | . . . Times Spotted 15 | . 4 11 Peak Tracking Total 2 | . 2 2 Tactical Retreats . | . . . Traps | -11 -10 -10 ------- Run | Scr Mat Min Traps Triggered 1 | . 1 . Indirectly . | . . . Trap Hack Attempts . | . . . Triggered . | . . . Disarmed . | . . . Reprogrammed . | . . . Reused . | . . . Traps Extracted . | . . . Installed . | . . . Triggered . | . . . Machines | -11 -10 -10 ---------- Run | Scr Mat Min Machines Disabled 1 | . . 1 Max in Single Turn 1 | . . 1 Machines Sabotaged . | . . . Garrisons Compromised . | . . . Overloaded Fab Kills . | . . . Fab Network Shutdowns . | . . . Hacking | -11 -10 -10 --------- Run | Scr Mat Min Machines Accessed 1 | . 1 . Terminals 1 | . 1 . Fabricators . | . . . Repair Stations . | . . . Recycling Units . | . . . Scanalyzers . | . . . Garrison Access . | . . . Total Hacks 1 | . 1 . Successful . | . . . Failed 1 | . 1 . Catastrophic 1 | . 1 . Database Lockouts . | . . . Manual 1 | . 1 . Terminals 1 | . 1 . Fabricators . | . . . Repair Stations . | . . . Recycling Units . | . . . Scanalyzers . | . . . Garrison Access . | . . . Terminal Hacks . | . . . Fabricator Hacks . | . . . Repair Station Hacks . | . . . Recycling Unit Hacks . | . . . Scanalyzer . | . . . Garrison Access Hacks . | . . . Unauthorized Hacks . | . . . Terminals . | . . . Fabricators . | . . . Repair Stations . | . . . Recycling Units . | . . . Scanalyzers . | . . . Garrison Access . | . . . Data Cores Recovered . | . . . Used . | . . . Hacking Detections 1 | . 1 . Full Trace Events . | . . . Feedback Events . | . . . Feedback Blocked . | . . . Robot Schematics Acquired . | . . . Robots Built . | . . . Matter . | . . . Time . | . . . Total Robot Build Rating . | . . . Part Schematics Acquired . | . . . Parts Built . | . . . Matter . | . . . Time . | . . . Total Part Build Rating . | . . . Parts Repaired . | . . . Time . | . . . Parts Recycled . | . . . Recycled Matter . | . . . Retrieved Matter . | . . . Retrieved Components . | . . . Parts Scanalyzed . | . . . Part Schematics Acquired . | . . . Parts Damaged . | . . . Bothacking | -11 -10 -10 ------------ Run | Scr Mat Min Used RIF Installer . | . . . Robots Hacked . | . . . Non-combat . | . . . Combat . | . . . Robot Hacks Applied . | . . . Relay Couplers Released . | . . . Robots Rewired . | . . . Allies Hacked . | . . . Hacks Repelled . | . . . Allies | -11 -10 -10 -------- Run | Scr Mat Min Total Allies . | . . . Largest Group . | . . . Highest-Rated Group . | . . . Highest-Rated Ally . | . . . Total Orders . | . . . Ally Attacks . | . . . Total Damage . | . . . Kills . | . . . Allies Corrupted . | . . . Allies Melted . | . . . Intel | -11 -10 -10 ------- Run | Scr Mat Min Robot Analysis Total . | . . . Derelict Logs Recovered . | . . . Drone Launches . | . . . Drone Recoveries . | . . . Exploration | -11 -10 -10 ------------- Run | Scr Mat Min Turns Passed 510 | 3 223 284 Spaces Moved 342 | 1 201 140 Core 1 | . . 1 Treads . | . . . Legs 133 | . . 133 Wheels 208 | 1 201 6 Hover . | . . . Flight . | . . . Fastest Speed 80 | 80 80 80 Average Speed 95 | 80 80 118 Slowest Speed 200 | 80 80 200 Overloaded Moves . | . . . Propulsion Burnouts . | . . . Robots Hopped . | . . . Cave-ins Triggered . | . . . Exploration Rate (%) 25 | 2 35 39 Regions Visited 2 Branch Regions 1 Pre-discovered Areas . | . . . Known Exits Taken . | . . . Unknown Exits Taken 2 | 1 1 . Scrap Searched . | . . . Spaces Dug . | . . . Terrain Destroyed 40 | . 6 34 Melee . | . . . Projectile . | . . . AOE 40 | . 6 34 Terrain Rammed . | . . . Walls Destroyed . | . . . Machines Disabled . | . . . Actions | -11 -10 -10 --------- Run | Scr Mat Min Total 453 | 2 242 209 Wait 30 | . 14 16 Move 340 | . 200 140 Hop . | . . . Pick Up 6 | . 5 1 Fast Attach 7 | . 2 5 Attach 3 | . . 3 Detach . | . . . Swap 7 | 2 3 2 Drop 7 | . 7 . Fire 53 | . 11 42 Melee . | . . . Ram . | . . . Kick . | . . . Crush . | . . . Escape Stasis . | . . . Rewire . | . . . Trap . | . . . Miscellaneous . | . . . Route ------- -11/Scrapyard -10/Materials (discovered 2 exits: *Mat / [*Min]) -10/Mines (discovered 1 exit: *Mat) History --------- Turn | Location | Event 4 | -11/Scrapyard | Discovered new exit (range 0) 4 | -11/Scrapyard | Entered Materials 132 | -10/Materials | Discovered new exit (range 12) 146 | -10/Materials | Identified exit to Materials 223 | -10/Materials | Discovered new exit (range 6) 227 | -10/Materials | Entered Mines 294 | -10/Mines | Lost 4 parts (2n2w) 299 | -10/Mines | Discovered exit to Materials (range 9) 302 | -10/Mines | Build established: Mutant 331 | -10/Mines | Core integrity fell below 50% 389 | -10/Mines | Lost 4 parts (1p1n2w) 393 | -10/Mines | Core integrity fell below 20% 511 | -10/Mines | Destroyed self with Grenade Launcher Last Messages --------------- 00437_ U-05 Engineer lays Concrete. 00439_ G-47 Trooper destroyed. 00439_ U-05 Engineer lays Concrete. 00441_ G-34 Mercenary destroyed. 00441_ R-06 Scavenger destroyed. 00441_ U-05 Engineer lays Concrete. 00448_ Acquired 6 matter. 00449_ U-05 Engineer lays Concrete. 00451_ Acquired Com. Wheel. 00452_ U-05 Engineer lays Concrete. 00452_ Acquired 74 matter. 00454_ U-05 Engineer lays Concrete. 00455_ Acquired Heat Sink. 00455_ U-05 Engineer lays Concrete. 00476_ K-01 Serf collects debris. 00486_ U-05 Engineer lays Concrete. 00487_ U-05 Engineer builds a Wall. 00490_ R-06 Scavenger collects Aluminum Leg. 00491_ U-05 Engineer lays Concrete. 00511_ S-10 Pest: "SECOND INTRUDER APPROACHING. ELIMINATE." Map ----- +----------------------------------------------------+ | ????????????????????????????????????????????? | | ????????????????????????????????????????????? | | ??????????##????????????????????????????????? | | ?????????# ????????????????????????????????? | | ????????# ????????????????????????????????? | | ????????# ????????????????????????????????? | | ????????# ????????????????????????????????? | | ???????? ????????????????????????????????? | | ????????# ????????????????????????????????? | | ????????# #????????????????????????????????? | | ????????# #####????????????????????????????? | | ????????# ##???? #????????????????????? | | ???????## ##?# #???????????????????? | | ??????## ## #???????????????????? | | ?????## #????????????????????? | | ???### ##???????????????????? | | ??## #???????????????????? | | ### #??????????????????? | | # ## ??????????????????? | | ##?????????????????????????? | | ## #??????????????????????????? | | = # # ##??????????????????????????? | | ! %==####???#########???????????????? | | ## ######?# ??#????????????? | | ### """ # ####?????????? | | # ## ### """@ sss #????? | | ####### #?# """ ######??????????? | | ??????## ## ####### #???????????????? | | ????######### ##??# #???????????????? | | #??##### ##???????????????? | | ?????###### #??????# #????????????????? | | ??????????# ##??????# #????????????????? | | ??????????# ##???????# #????????????????? | | ??????????## #????????# #????????????????? | | ???????????# ##???????# #????????????????? | | ???????????# #???????# #????????????????? | | ??????????# #???????# #????????????????? | | ???????? #???????? #????????????????? | | ???????### #???????? #????????????????? | | ?????????## ##????????###????????????????? | | ??????????## ##????????????????????????????? | | ???????????###??????????????????????????????? | | ????????????????????????????????????????????? | | ????????????????????????????????????????????? | | ????????????????????????????????????????????? | | ????????????????????????????????????????????? | | ????????????????????????????????????????????? | | ????????????????????????????????????????????? | | ????????????????????????????????????????????? | | ????????????????????????????????????????????? | +----------------------------------------------------+ Best States ------------- Heat Dissipation 35 Energy Generation 10 Energy Capacity 250 Matter Stores 300 Matter Capacity 300 Sight Range 16 Terrain Scan Density 10 Evasion (%) 44 Targeting Accuracy 5 Item Schematics ----------------- None Robot Schematics ------------------ None Fabricated ------------ Nothing Alien Tech Used ----------------- None Achievements -------------- None Challenges ------------ None Game ------ Seed GravmagGravitonCoupler Manual? 0 Play Time 00:15:03 Cumulative 82.9 hours Start 2020.10.25 @ 01:10:31 End 2020.10.25 @ 03:00:02 Sessions 4 Manual Loads 0 Difficulty Rogue Special Mode None Game No. 97 Rogue 97 Adventurer 0 Explorer 0 Win Type - Total 0 Types 0/0/0/0/0/0/0/0/0 Lore% 52 Gallery% 58 Achievement% 45 Wizard Run 0 Options --------- ASCII 0 Keyboard 0 Movement Mouse Keybinds 0 Fullscreen 1 Font 24/Smallcaps Map View 76x50 Tactical HUD 1 Map Filters NONE Filters NONE Steam 1 RUN: 84edccae-1d90-4b11-b16e-46336ff11ef9